fUST/lending_fUST_20250516
["ID","MTS","AMOUNT","RATE_DAILY","PERIOD"]
[361225784,1747362640287,-534.82,0.00013835,2]
[361225786,1747362640297,-259.94167996,0.00013835,2]
[361225787,1747362640307,-450.0,0.00013835,2]
[361225790,1747362640317,-450.0,0.00013835,2]
[361225793,1747362640326,-450.0,0.00013835,2]
[361225795,1747362640339,-487.08,0.00013835,2]
[361225798,1747362640349,-350.0,0.00013835,2]
[361225801,1747362640359,-450.0,0.00013835,2]
[361225804,1747362640369,-379.96154327,0.00013835,2]
[361225807,1747362640378,-450.0,0.00013835,2]
[361225810,1747362640389,-450.0,0.00013835,2]
[361225813,1747362640399,-350.0,0.00013835,2]
[361225816,1747362640410,-450.0,0.00013835,2]
[361225819,1747362640420,-333.96622771,0.00013835,2]
[361225822,1747362640429,-450.0,0.00013835,2]
[361225825,1747362640439,-450.0,0.00013835,2]
[361225828,1747362640448,-450.0,0.00013835,2]
[361225831,1747362640458,-302.65781893,0.00013835,2]
[361225834,1747362640471,-450.0,0.00013835,2]
[361225838,1747362640480,-450.0,0.00013835,2]
[361225841,1747362640490,-260.27664431,0.00013835,2]
[361225844,1747362640500,-672.33,0.00013835,2]
[361225847,1747362640510,-361.02778456,0.00013835,2]
[361225849,1747362640520,-450.0,0.00013835,2]
[361225852,1747362640530,-450.0,0.00013835,2]
[361225855,1747362640539,-258.53186603,0.00013835,2]
[361225858,1747362640549,-770.23,0.00013835,2]
[361225861,1747362640559,-450.0,0.00013835,2]
[361225864,1747362640569,-450.0,0.00013835,2]
[361225867,1747362640580,-533.9,0.00013835,2]
[361225870,1747362640589,-450.0,0.00013835,2]
[361225873,1747362640599,-215.1687264,0.00013835,2]
[361225876,1747362640610,-510.97,0.00013835,2]
[361225879,1747362640620,-701.51,0.00013835,2]
[361225882,1747362640630,-306.48807226,0.00013835,2]
[361225885,1747362640640,-499.03,0.00013835,2]
[361225888,1747362640649,-570.82,0.00013835,2]
[361225891,1747362640659,-308.63569982,0.00013835,2]
[361225894,1747362640669,-584.87,0.00013835,2]
[361225897,1747362640679,-450.0,0.00013835,2]
[361225900,1747362640689,-233.75061578,0.00013835,2]
[361225903,1747362640698,-450.0,0.00013835,2]
[361225906,1747362640708,-498.02,0.00013835,2]
[361225909,1747362640718,-455.41,0.00013835,2]
[361225912,1747362640730,-320.53840875,0.00013835,2]
[361225915,1747362640740,-450.0,0.00013835,2]
[361225919,1747362640750,-1660.86,0.00013835,2]
[361225922,1747362640760,-151.0,0.00013835,2]
[361225925,1747362640770,-151.0,0.00013835,2]
[361225927,1747362640780,-151.0,0.00013835,2]
[361225930,1747362640791,-304.40585733,0.00013835,2]
[361225931,1747362640801,-151.0,0.00013835,2]
[361225934,1747362640811,-284.211254,0.00013835,2]
[361225936,1747362640821,-1155.15,0.00013835,2]
[361225938,1747362640831,-411.73762338,0.00013835,2]
[361225940,1747362640840,-307.84593341,0.00013835,2]
[361225941,1747362640850,-151.0,0.00013835,2]
[361225944,1747362640861,-151.0,0.00013835,2]
[361225946,1747362640871,-151.0,0.00013835,2]
[361225948,1747362640882,-184.18613819,0.00013835,2]
[361225950,1747362640891,-922.46,0.00013835,2]
[361225952,1747362640901,-450.0,0.00013835,2]
[361225954,1747362640911,-450.0,0.00013835,2]
[361225956,1747362640921,-450.0,0.00013835,2]
[361225958,1747362640931,-450.0,0.00013835,2]
[361225960,1747362640940,-1966.37,0.00013835,2]
[361225962,1747362640950,-799.57,0.00013835,2]
[361225964,1747362640961,-4033.63,0.00013835,2]
[361225966,1747362640971,-774.04,0.00013835,2]
[361225968,1747362640980,-831.99,0.00013835,2]
[361225970,1747362640990,-507.47,0.00013835,2]
[361225972,1747362641001,-1447.74,0.00013835,2]
[361225973,1747362641011,-1636.69,0.00013835,2]
[361225975,1747362641020,-151.0,0.00013835,2]
[361225976,1747362641030,-151.0,0.00013835,2]
[361225977,1747362641040,-151.0,0.00013835,2]
[361225978,1747362641050,-353.06862366,0.00013835,2]
[361225979,1747362641061,-450.0,0.00013835,2]
[361225980,1747362641072,-1576.82,0.00013835,2]
[361225981,1747362641082,-450.0,0.00013835,2]
[361225982,1747362641091,-718.63,0.00013835,2]
[361225983,1747362641101,-2174.62,0.00013835,2]
[361225984,1747362641110,-1473.95,0.00013835,2]
[361225985,1747362641120,-1548.52,0.00013835,2]
[361225986,1747362641130,-611.83,0.00013835,2]
[361225987,1747362641140,-2201.1,0.00013835,2]
[361225988,1747362641149,-804.26,0.00013835,2]
[361225989,1747362641160,-1527.34,0.00013835,2]
[361225990,1747362641169,-450.0,0.00013835,2]
[361225991,1747362641179,-956.44,0.00013835,2]
[361225992,1747362641190,-1297.62,0.00013835,2]
[361225993,1747362641202,-5190.06,0.00013835,2]
[361225994,1747362641212,-450.0,0.00013835,2]
[361225995,1747362641223,-1609.01,0.00013835,2]
[361225996,1747362641234,-450.0,0.00013835,2]
[361225997,1747362641244,-364.13001662,0.00013835,2]
[361225998,1747362641254,-896.82,0.00013835,2]
[361225999,1747362641265,-450.0,0.00013835,2]
[361226000,1747362641276,-8227.25,0.00013835,2]
[361226001,1747362641286,-450.0,0.00013835,2]
[361226002,1747362641295,-450.0,0.00013835,2]
[361226003,1747362641305,-450.0,0.00013835,2]
[361226004,1747362641315,-583.07,0.00013835,2]
[361226005,1747362641324,-450.0,0.00013835,2]
[361226006,1747362641336,-1549.38,0.00013835,2]
[361226007,1747362641346,-359.42031427,0.00013835,2]
[361226008,1747362641356,-1816.33,0.00013835,2]
[361226009,1747362641366,-1117.47,0.00013835,2]
[361226010,1747362641375,-450.0,0.00013835,2]
[361226011,1747362641385,-6628.94,0.00013835,2]
[361226012,1747362641395,-644.63,0.00013835,2]
[361226013,1747362641405,-165.278833,0.00013835,2]
[361226014,1747362641414,-450.0,0.00013835,2]
[361226015,1747362641424,-165.278833,0.00013835,2]
[361226016,1747362641434,-5439.1226595,0.00013835,2]
[361226017,1747362641675,-161.432424,0.00013698,2]
[361226018,1747362641685,-2050.38704097,0.00013835,2]
[361226019,1747362642656,-490.57127729,0.00013641,2]
[361226020,1747362642666,-160.0,0.00013655,2]
[361226021,1747362642676,-450.0,0.00013698,2]
[361226022,1747362642686,-151.0,0.00013698,2]
[361226023,1747362642695,-151.0,0.00013698,2]
[361226024,1747362642704,-151.0,0.00013698,2]
[361226025,1747362642713,-151.0,0.00013698,2]
[361226026,1747362642723,-151.0,0.00013698,2]
[361226028,1747362642732,-151.0,0.00013698,2]
[361226029,1747362642742,-151.0,0.00013698,2]
[361226030,1747362642751,-151.955838,0.00013698,2]
[361226032,1747362642761,-151.0,0.00013698,2]
[361226034,1747362642771,-151.0,0.00013698,2]
[361226036,1747362642780,-151.0,0.00013834,2]
[361226037,1747362642790,-151.0,0.00013834,2]
[361226038,1747362642800,-311.02029953,0.00013835,2]
[361226039,1747362642809,-450.0,0.00013835,2]
[361226040,1747362642818,-165.278833,0.00013835,2]
[361226041,1747362642827,-1129.84962,0.00013835,2]
[361226042,1747362642837,-165.278838,0.00013835,2]
[361226043,1747362642846,-1129.84962,0.00013835,2]
[361226044,1747362642856,-450.0,0.00013835,2]
[361226045,1747362642866,-450.0,0.00013835,2]
[361226047,1747362642876,-1129.84962,0.00013835,2]
[361226048,1747362642886,-1129.849626,0.00013835,2]
[361226050,1747362642896,-450.0,0.00013835,2]
[361226052,1747362642905,-364.61027488,0.00013835,2]
[361226053,1747362642916,-450.0,0.00013835,2]
[361226054,1747362642926,-450.0,0.00013835,2]
[361226055,1747362642936,-450.0,0.00013835,2]
[361226056,1747362642946,-8388.13,0.00013835,2]
[361226058,1747362642956,-450.0,0.00013835,2]
[361226059,1747362642967,-858.88,0.00013835,2]
[361226061,1747362642983,-450.0,0.00013835,2]
[361226064,1747362642994,-539.22,0.00013835,2]
[361226066,1747362643005,-468.82,0.00013835,2]
[361226068,1747362643015,-477.26,0.00013835,2]
[361226069,1747362643025,-2038.70335048,0.00013835,2]
[361226070,1747362643046,-151.0,0.00013698,2]
[361226071,1747362643056,-534.88,0.00013835,2]
[361226072,1747362643069,-87.53664952,0.00013835,2]
[361226073,1747362643079,-894.34361606,0.00013835,2]
[361226074,1747362643092,-88.94638394,0.00013835,2]
[361226075,1747362643102,-1760.45,0.00013835,2]
[361226076,1747362643112,-354.36471044,0.00013835,2]
[361226077,1747362643123,-656.3,0.00013835,2]
[361226078,1747362643133,-586.66,0.00013835,2]
[361226079,1747362643143,-2054.91,0.00013835,2]
[361226080,1747362643153,-628.35,0.00013835,2]
[361226081,1747362643163,-547.63,0.00013835,2]
[361226082,1747362643172,-450.0,0.00013835,2]
[361226083,1747362643182,-450.0,0.00013835,2]
[361226084,1747362643192,-1182.08,0.00013835,2]
[361226085,1747362643202,-932.95,0.00013835,2]
[361226086,1747362643212,-689.24,0.00013835,2]
[361226087,1747362643224,-151.0,0.00013835,2]
[361226088,1747362643233,-151.0,0.00013835,2]
[361226089,1747362643242,-660.23,0.00013835,2]
[361226090,1747362643251,-450.0,0.00013835,2]
[361226091,1747362643261,-493.85,0.00013835,2]
[361226092,1747362643271,-1197.79,0.00013835,2]
[361226093,1747362643282,-595.81,0.00013835,2]
[361226094,1747362643292,-822.31,0.00013835,2]
[361226095,1747362643302,-2201.53,0.00013835,2]
[361226096,1747362643312,-1274.67,0.00013835,2]
[361226097,1747362643321,-356.55498524,0.00013835,2]
[361226098,1747362643332,-1116.51,0.00013835,2]
[361226099,1747362643343,-450.0,0.00013835,2]
[361226100,1747362643352,-352.15366501,0.00013835,2]
[361226101,1747362643362,-573.87,0.00013835,2]
[361226102,1747362643372,-1265.71,0.00013835,2]
[361226103,1747362643382,-729.59,0.00013835,2]
[361226105,1747362643392,-522.09,0.00013835,2]
[361226107,1747362643401,-450.77,0.00013835,2]
[361226109,1747362643410,-468.09,0.00013835,2]
[361226111,1747362643420,-1264.34,0.00013835,2]
[361226112,1747362643429,-617.48,0.00013835,2]
[361226113,1747362643439,-3115.8,0.00013835,2]
[361226114,1747362643448,-1365.36,0.00013835,2]
[361226115,1747362643458,-1038.61,0.00013835,2]
[361226116,1747362643467,-450.0,0.00013835,2]
[361226117,1747362643480,-450.0,0.00013835,2]
[361226118,1747362643490,-450.0,0.00013835,2]
[361226119,1747362643500,-978.86,0.00013835,2]
[361226120,1747362643510,-3786.4,0.00013835,2]
[361226121,1747362643520,-2321.69,0.00013835,2]
[361226123,1747362643529,-1074.76,0.00013835,2]
[361226124,1747362643538,-1767.98,0.00013835,2]
[361226125,1747362643547,-2946.35,0.00013835,2]
[361226127,1747362643557,-359.27076457,0.00013835,2]
[361226128,1747362643567,-450.0,0.00013835,2]
[361226129,1747362643576,-450.0,0.00013835,2]
[361226130,1747362643586,-450.0,0.00013835,2]
[361226131,1747362643596,-713.38,0.00013835,2]
[361226132,1747362643607,-355.22088534,0.00013835,2]
[361226133,1747362643616,-2406.63,0.00013835,2]
[361226134,1747362643625,-655.84,0.00013835,2]
[361226135,1747362643635,-354.14655908,0.00013835,2]
[361226136,1747362643645,-450.0,0.00013835,2]
[361226137,1747362643655,-353.36124872,0.00013835,2]
[361226138,1747362643665,-3241.84,0.00013835,2]
[361226139,1747362643675,-450.0,0.00013835,2]
[361226140,1747362643684,-913.03,0.00013835,2]
[361226141,1747362643694,-450.0,0.00013835,2]
[361226142,1747362643704,-2010.61,0.00013835,2]
[361226143,1747362643714,-474.94,0.00013835,2]
[361226144,1747362643726,-363.4564077,0.00013835,2]
[361226145,1747362643736,-450.0,0.00013835,2]
[361226146,1747362643746,-450.0,0.00013835,2]
[361226147,1747362643755,-619.53,0.00013835,2]
[361226148,1747362643765,-862.06,0.00013835,2]
[361226149,1747362643775,-450.0,0.00013835,2]
[361226150,1747362643785,-450.0,0.00013835,2]
[361226151,1747362643794,-549.38,0.00013835,2]
[361226152,1747362643803,-1090.99,0.00013835,2]
[361226153,1747362643813,-1406.43,0.00013835,2]
[361226154,1747362643821,-450.0,0.00013835,2]
[361226155,1747362643830,-450.0,0.00013835,2]
[361226156,1747362643839,-450.0,0.00013835,2]
[361226157,1747362643849,-501.32,0.00013835,2]
[361226158,1747362643858,-280.41979953,0.00013835,2]
[361226159,1747362643867,-682.67,0.00013835,2]
[361226160,1747362643876,-151.0,0.00013835,2]
[361226161,1747362643885,-151.0,0.00013835,2]
[361226162,1747362643894,-1806.86,0.00013835,2]
[361226163,1747362643903,-510.92,0.00013835,2]
[361226164,1747362643912,-450.0,0.00013835,2]
[361226165,1747362643921,-543.58559113,0.00013835,2]
[361226166,1747362644566,-0.00162203,0.00013698,2]
[361226167,1747362644578,-150.99837797,0.00013698,2]
[361226168,1747362644586,-450.0,0.00013698,2]
[361226169,1747362644595,-151.0,0.00013698,2]
[361226170,1747362644604,-151.0,0.00013698,2]
[361226171,1747362644613,-190.404165,0.00013698,2]
[361226172,1747362644622,-6.35440887,0.00013835,2]
[361226173,1747362644631,-925.11,0.00013835,2]
[361226174,1747362644641,-450.0,0.00013835,2]
[361226175,1747362644650,-712.33,0.00013835,2]
[361226176,1747362644659,-1358.46,0.00013835,2]
[361226177,1747362644669,-450.0,0.00013835,2]
[361226178,1747362644678,-450.0,0.00013835,2]
[361226179,1747362644687,-150.106,0.00013846,2]
[361226180,1747362644697,-150.084,0.00013846,2]
[361226181,1747362644706,-150.11,0.00013846,2]
[361226182,1747362644715,-358.356,0.00013854,2]
[361226183,1747362644726,-404.0,0.00013861,2]
[361226184,1747362644735,-547.861,0.00013861,2]
[361226185,1747362644744,-500.0,0.00013873,2]
[361226186,1747362644753,-500.0,0.00013873,2]
[361226187,1747362644762,-500.0,0.00013873,2]
[361226188,1747362644771,-500.0,0.00013873,2]
[361226189,1747362644780,-500.0,0.00013873,2]
[361226190,1747362644789,-500.0,0.00013873,2]
[361226191,1747362644799,-500.0,0.00013873,2]
[361226192,1747362644808,-500.0,0.00013873,2]
[361226193,1747362644817,-500.0,0.00013873,2]
[361226194,1747362644826,-500.0,0.00013873,2]
[361226195,1747362644836,-502.01940604,0.00013873,2]
[361226196,1747362644845,-500.0,0.00013873,2]
[361226197,1747362644855,-500.0,0.00013873,2]
[361226198,1747362644864,-500.0,0.00013873,2]
[361226199,1747362644874,-343.14288117,0.00013873,2]
[361226200,1747362644883,-500.0,0.00013873,2]
[361226201,1747362644892,-345.07399432,0.00013886,2]
[361226202,1747362644902,-186.0,0.000139,3]
[361226203,1747362644911,-151.0,0.000139,2]
[361226204,1747362644920,-1701.3004786,0.00013902,2]
[361226205,1747362644930,-500.0,0.0001392,2]
[361226206,1747362644940,-3413.94169367,0.00013952,2]
[361226207,1747362644949,-826.97,0.00013972,2]
[361226208,1747362644959,-450.0,0.00013972,2]
[361226209,1747362644968,-450.0,0.00013972,2]
[361226210,1747362644979,-450.0,0.00013972,2]
[361226211,1747362644988,-450.0,0.00013972,2]
[361226212,1747362644997,-566.75,0.00013972,2]
[361226213,1747362645007,-450.0,0.00013972,2]
[361226214,1747362645017,-188.0,0.00013972,2]
[361226215,1747362645027,-450.0,0.00013972,2]
[361226216,1747362645036,-623.65,0.00013972,2]
[361226217,1747362645046,-380.01307795,0.00013972,2]
[361226218,1747362645056,-661.41,0.00013972,2]
[361226219,1747362645066,-450.0,0.00013972,2]
[361226220,1747362645076,-543.19,0.00013972,2]
[361226221,1747362645086,-450.0,0.00013972,2]
[361226222,1747362645095,-450.0,0.00013972,2]
[361226223,1747362645105,-477.45091362,0.00013972,2]
[361226224,1747362645114,-450.0,0.00013972,2]
[361226225,1747362645123,-450.0,0.00013972,2]
[361226226,1747362645133,-450.0,0.00013972,2]
[361226227,1747362645142,-450.0,0.00013972,2]
[361226228,1747362645152,-450.0,0.00013972,2]
[361226229,1747362645160,-1090.07,0.00013972,2]
[361226230,1747362645170,-450.0,0.00013972,2]
[361226231,1747362645179,-450.0,0.00013972,2]
[361226232,1747362645188,-803.8,0.00013972,2]
[361226233,1747362645197,-450.0,0.00013972,2]
[361226234,1747362645207,-450.0,0.00013972,2]
[361226235,1747362645216,-537.96,0.00013972,2]
[361226236,1747362645225,-450.0,0.00013972,2]
[361226237,1747362645235,-635.49,0.00013972,2]
[361226238,1747362645244,-281.37982048,0.00013972,2]
[361226239,1747362645255,-450.0,0.00013972,2]
[361226240,1747362645264,-450.0,0.00013972,2]
[361226241,1747362645274,-450.0,0.00013972,2]
[361226242,1747362645283,-561.71,0.00013972,2]
[361226243,1747362645292,-485.08,0.00013972,2]
[361226244,1747362645302,-450.0,0.00013972,2]
[361226245,1747362645311,-481.43,0.00013972,2]
[361226246,1747362645320,-709.75,0.00013972,2]
[361226247,1747362645330,-570.09,0.00013972,2]
[361226248,1747362645341,-450.0,0.00013972,2]
[361226249,1747362645350,-612.22,0.00013972,2]
[361226250,1747362645360,-1130.73,0.00013972,2]
[361226251,1747362645369,-450.0,0.00013972,2]
[361226252,1747362645379,-545.2966478,0.00013972,2]
[361226253,1747362645389,-450.0,0.00013972,2]
[361226254,1747362645398,-501.67,0.00013972,2]
[361226255,1747362645407,-534.82,0.00013972,2]
[361226256,1747362645417,-450.0,0.00013972,2]
[361226257,1747362645426,-450.0,0.00013972,2]
[361226258,1747362645436,-450.0,0.00013972,2]
[361226259,1747362645445,-487.08,0.00013972,2]
[361226260,1747362645455,-450.0,0.00013972,2]
[361226261,1747362645464,-214.1686103,0.00013972,2]
[361226262,1747362645474,-447.97230555,0.00013972,2]
[361226263,1747362645484,-450.0,0.00013972,2]
[361226264,1747362645493,-450.0,0.00013972,2]
[361226265,1747362645502,-450.0,0.00013972,2]
[361226266,1747362645512,-332.54176734,0.00013972,2]
[361226267,1747362645522,-450.0,0.00013972,2]
[361226268,1747362645532,-450.0,0.00013972,2]
[361226269,1747362645541,-672.33,0.00013972,2]
[361226270,1747362645551,-450.0,0.00013972,2]
[361226271,1747362645562,-450.0,0.00013972,2]
[361226272,1747362645572,-770.23,0.00013972,2]
[361226273,1747362645582,-450.0,0.00013972,2]
[361226274,1747362645593,-450.0,0.00013972,2]
[361226275,1747362645603,-533.9,0.00013972,2]
[361226276,1747362645613,-450.0,0.00013972,2]
[361226277,1747362645623,-510.97,0.00013972,2]
[361226278,1747362645633,-701.51,0.00013972,2]
[361226279,1747362645643,-499.03,0.00013972,2]
[361226280,1747362645652,-570.82,0.00013972,2]
[361226281,1747362645662,-584.87,0.00013972,2]
[361226282,1747362645671,-450.0,0.00013972,2]
[361226283,1747362645681,-450.0,0.00013972,2]
[361226284,1747362645690,-498.02,0.00013972,2]
[361226285,1747362645699,-455.41,0.00013972,2]
[361226286,1747362645708,-450.0,0.00013972,2]
[361226287,1747362645717,-1660.86,0.00013972,2]
[361226288,1747362645728,-1155.15,0.00013972,2]
[361226290,1747362645739,-922.46,0.00013972,2]
[361226291,1747362645748,-450.0,0.00013972,2]
[361226293,1747362645757,-450.0,0.00013972,2]
[361226295,1747362645767,-450.0,0.00013972,2]
[361226296,1747362645776,-157.17039766,0.00013972,2]
[361226299,1747362645790,-292.82960234,0.00013972,2]
[361226302,1747362645800,-153.34074766,0.00013972,2]
[361226315,1747362645920,-450.0,0.00013698,2]
[361226317,1747362645929,-450.0,0.00013835,2]
[361226319,1747362645939,-1813.02925234,0.00013972,2]
[361226334,1747362646090,-799.57,0.00013972,2]
[361226336,1747362646103,-4033.63,0.00013972,2]
[361226338,1747362646113,-774.04,0.00013972,2]
[361226340,1747362646123,-507.47,0.00013972,2]
[361226342,1747362646133,-831.99,0.00013972,2]
[361226344,1747362646142,-1447.74,0.00013972,2]
[361226345,1747362646153,-1636.69,0.00013972,2]
[361226347,1747362646162,-450.0,0.00013972,2]
[361226349,1747362646172,-450.0,0.00013972,2]
[361226351,1747362646182,-718.63,0.00013972,2]
[361226353,1747362646191,-2174.62,0.00013972,2]
[361226355,1747362646201,-1548.52,0.00013972,2]
[361226357,1747362646210,-611.83,0.00013972,2]
[361226359,1747362646220,-804.26,0.00013972,2]
[361226362,1747362646233,-1527.34,0.00013972,2]
[361226364,1747362646243,-450.0,0.00013972,2]
[361226365,1747362646253,-956.44,0.00013972,2]
[361226367,1747362646266,-1297.62,0.00013972,2]
[361226369,1747362646276,-5190.06,0.00013972,2]
[361226371,1747362646286,-450.0,0.00013972,2]
[361226373,1747362646295,-1609.01,0.00013972,2]
[361226375,1747362646304,-450.0,0.00013972,2]
[361226376,1747362646315,-896.82,0.00013972,2]
[361226379,1747362646325,-450.0,0.00013972,2]
[361226380,1747362646335,-8227.25,0.00013972,2]
[361226382,1747362646347,-450.0,0.00013972,2]
[361226384,1747362646356,-450.0,0.00013972,2]
[361226386,1747362646365,-450.0,0.00013972,2]
[361226388,1747362646375,-583.07,0.00013972,2]
[361226390,1747362646384,-450.0,0.00013972,2]
[361226392,1747362646394,-1549.38,0.00013972,2]
[361226394,1747362646403,-1816.33,0.00013972,2]
[361226396,1747362646413,-1117.47,0.00013972,2]
[361226398,1747362646424,-5290.08560282,0.00013972,2]
[361226400,1747362646438,-1338.85439718,0.00013972,2]
[361226402,1747362646447,-644.63,0.00013972,2]
[361226404,1747362646457,-450.0,0.00013972,2]
[361226406,1747362646466,-5717.48009282,0.00013972,2]
[361226431,1747362771932,2000.0,0.00027558,30]
[361226433,1747362772482,2000.0,0.00027558,30]
[361226434,1747362773000,2000.0,0.00027558,30]
[361226436,1747362773574,2000.0,0.00027558,30]
[361226437,1747362774567,2000.0,0.00027558,30]
[361226438,1747362775804,472.0,0.00027558,30]
[361226443,1747362945300,10037.5,0.00027558,30]
[361226446,1747363080872,10000.2,0.00027558,30]
[361226454,1747363368697,2000.0,0.00027582,30]
[361226455,1747363369092,2000.0,0.00027582,30]
[361226456,1747363369647,2000.0,0.00027582,30]
[361226457,1747363370325,2000.0,0.00027582,30]
[361226458,1747363371033,2000.0,0.00027582,30]
[361226459,1747363371364,472.0,0.00027582,30]
[361226460,1747363410266,894.881445,0.00027397,120]
[361226497,1747363832550,-300.0,0.0001267,2]
[361226499,1747363832560,-300.0,0.0001267,2]
[361226500,1747363832569,-1200.0,0.0001267,2]
[361226501,1747363832578,-300.0,0.0001267,2]
[361226502,1747363832588,-13553.87933969,0.00012671,2]
[361226513,1747363832677,-1146.49162107,0.00012671,2]
[361226596,1747363838401,-2666.6143928,0.00012671,2]
[361226722,1747363840867,-1512.81684643,0.00012671,2]
[361226724,1747363840878,-4780.54198561,0.00012671,2]
[361226726,1747363840887,-437.8020036,0.00012722,2]
[361226728,1747363840897,-308.81162354,0.00013543,2]
[361226730,1747363840906,-285.50967117,0.00013546,2]
[361226732,1747363840916,-285.50967113,0.00013599,2]
[361226734,1747363840926,-5588.00900217,0.00013643,2]
[361226812,1747363843642,-394.19537616,0.00013643,2]
[361226832,1747363846592,-2000.0,0.00013643,2]
[361226833,1747363846647,-6741.13307684,0.00013643,2]
[361226834,1747363846702,-35276.66254483,0.00013643,2]
[361226835,1747363846711,-160.0,0.00013646,2]
[361226836,1747363846720,-422.39640784,0.00013646,2]
[361226837,1747363846730,-160.0,0.00013646,2]
[361226838,1747363846739,-160.0,0.00013646,2]
[361226839,1747363846748,-160.0,0.00013646,2]
[361226840,1747363846758,-285.50967113,0.00013652,2]
[361226841,1747363846767,-212.9445283,0.00013687,2]
[361226842,1747363846777,-500.0,0.00013697,2]
[361226843,1747363846786,-500.0,0.00013697,2]
[361226844,1747363846796,-275.54773461,0.00013697,2]
[361226845,1747363846806,-500.0,0.00013697,2]
[361226846,1747363846816,-500.0,0.00013697,2]
[361226847,1747363846826,-279.52997244,0.00013697,2]
[361226848,1747363846835,-500.0,0.00013697,2]
[361226849,1747363846845,-500.0,0.00013697,2]
[361226850,1747363846855,-450.0,0.00013698,2]
[361226851,1747363846864,-450.0,0.00013698,2]
[361226852,1747363846873,-450.0,0.00013698,2]
[361226853,1747363846883,-450.0,0.00013698,2]
[361226854,1747363846892,-568.70442666,0.00013698,2]
[361226855,1747363846902,-450.0,0.00013698,2]
[361226856,1747363846912,-450.0,0.00013698,2]
[361226857,1747363846921,-450.0,0.00013698,2]
[361226858,1747363846931,-588.28,0.00013698,2]
[361226859,1747363846946,-450.0,0.00013698,2]
[361226860,1747363846955,-173.28876023,0.00013698,2]
[361226861,1747363846965,-450.0,0.00013698,2]
[361226862,1747363846975,-450.0,0.00013698,2]
[361226863,1747363846985,-450.0,0.00013698,2]
[361226864,1747363846996,-450.0,0.00013698,2]
[361226865,1747363847005,-677.29,0.00013698,2]
[361226866,1747363847016,-450.0,0.00013698,2]
[361226867,1747363847026,-450.0,0.00013698,2]
[361226868,1747363847036,-450.0,0.00013698,2]
[361226869,1747363847048,-200.35583308,0.00013698,2]
[361226870,1747363847058,-498.83,0.00013698,2]
[361226871,1747363847067,-400.0,0.00013698,2]
[361226872,1747363847076,-556.06,0.00013698,2]
[361226873,1747363847086,-450.0,0.00013698,2]
[361226874,1747363847095,-450.0,0.00013698,2]
[361226875,1747363847105,-491.49,0.00013698,2]
[361226876,1747363847115,-654.81,0.00013698,2]
[361226877,1747363847134,-467.97,0.00013698,2]
[361226878,1747363847144,-450.0,0.00013698,2]
[361226879,1747363847155,-621.04,0.00013698,2]
[361226880,1747363847165,-450.0,0.00013698,2]
[361226881,1747363847175,-258.06089305,0.00013698,2]
[361226882,1747363847185,-450.0,0.00013698,2]
[361226883,1747363847195,-450.0,0.00013698,2]
[361226884,1747363847205,-450.0,0.00013698,2]
[361226885,1747363847215,-450.0,0.00013698,2]